bitfinex/quotes_ETHUSD_20240822
["timestamp","ask_amount","ask_price","bid_price","bid_amount"]
[1724343243358,3.84143,2603.2,2602.7,6.10042]
[1724343243553,3.84164,2603.1,2602.6,3.0]
[1724343244395,3.84164,2603.1,2602.5,3.84235]
[1724343244540,3.84173,2603.0,2602.5,6.831808]
[1724343245156,7.68358,2603.0,2602.5,2.989458]
[1724343245381,3.84211,2602.8,2602.4,2.3996]
[1724343245578,3.84188,2602.9,2602.4,6.24212]
[1724343246447,6.28533,2603.0,2602.4,6.24212]
[1724343246649,0.55,2602.9,2602.4,6.24212]
[1724343247090,4.39191,2602.9,2602.4,6.24212]
[1724343247295,4.39191,2602.9,2602.4,8.286595]
[1724343248962,3.84202,2602.8,2602.4,4.444075]
[1724343249167,3.84202,2602.8,2602.3,6.84263]
[1724343249393,3.84217,2602.7,2602.3,3.0]
[1724343249596,3.84217,2602.7,2602.2,2.3885]
[1724343249893,3.84231,2602.6,2602.1,3.84297]
[1724343250313,3.84231,2602.6,2602.0,9.7485]
[1724343250314,2.9293,2602.5,2602.0,9.7485]
[1724343250489,2.9293,2602.5,2602.0,7.36]
[1724343250490,3.84262,2602.4,2602.0,7.36]
[1724343250692,2.9293,2602.5,2602.0,3.84317]
[1724343250894,2.9293,2602.5,2602.0,4.611811]
[1724343250895,0.55,2602.5,2602.0,4.611811]
[1724343251706,4.39247,2602.5,2602.0,4.611811]
[1724343252468,0.55,2602.5,2602.1,2.3885]
[1724343252669,4.39255,2602.5,2602.0,4.611811]
[1724343253005,3.84275,2602.3,2601.8,2.3885]
[1724343253306,3.84275,2602.3,2601.8,6.23197]
[1724343253771,3.84275,2602.3,2601.8,3.84347]
[1724343254170,3.84275,2602.3,2601.7,3.84352]
[1724343254171,3.84298,2602.2,2601.7,3.84352]
[1724343254598,3.84313,2602.1,2601.6,12.7485]
[1724343254918,3.84322,2602.0,2601.6,3.0]
[1724343255241,3.84322,2602.0,2601.5,3.84382]
[1724343255393,3.84322,2602.0,2601.5,5.887465]
[1724343255578,3.84322,2602.0,2601.5,9.731315]
[1724343256006,6.22238,2602.1,2601.5,9.731315]
[1724343256219,3.84191,2602.9,2602.6,81.55717]
[1724343256418,11.66936,2602.7,2602.6,81.55717]
[1724343256628,18.51156,2602.7,2602.6,81.55717]
[1724343258477,19.06156,2602.7,2602.6,81.55717]
[1724343259271,21.44086,2602.7,2602.6,81.55717]
[1724343260032,25.28306,2602.7,2602.6,81.55717]
[1724343264328,29.12526,2602.7,2602.6,81.55717]
[1724343264774,33.11026,2602.7,2602.6,66.58977]
[1724343264974,33.11026,2602.7,2602.6,64.29797]
[1724343265315,29.12526,2602.7,2602.6,64.29797]
[1724343266383,25.28306,2602.7,2602.6,64.29797]
[1724343268534,11.52656,2602.7,2602.6,64.29797]
[1724343269958,15.91872,2602.7,2602.6,64.29797]
[1724343270162,18.91872,2602.7,2602.6,64.29797]
[1724343273018,15.07648,2602.7,2602.6,64.29797]
[1724343273190,14.52648,2602.7,2602.6,64.29797]
[1724343274369,15.07648,2602.7,2602.6,64.29797]
[1724343275188,17.38248,2602.7,2602.6,64.29797]
[1724343276879,15.07648,2602.7,2602.6,64.29797]
[1724343277079,10.68432,2602.7,2602.6,64.29797]
[1724343277607,14.52648,2602.7,2602.6,64.29797]
[1724343278521,17.50218,2602.7,2602.6,64.29797]
[1724343280297,15.07648,2602.7,2602.6,64.29797]
[1724343282638,18.91864,2602.7,2602.6,64.29797]
[1724343282790,21.29514,2602.7,2602.6,64.29797]
[1724343285321,17.45298,2602.7,2602.6,64.29797]
[1724343285521,21.29514,2602.7,2602.6,64.29797]
[1724343286101,18.91864,2602.7,2602.6,64.29797]
[1724343286847,14.52648,2602.7,2602.6,64.29797]
[1724343287814,15.07648,2602.7,2602.6,64.29797]
[1724343289238,11.23432,2602.7,2602.6,66.71287]
[1724343290109,10.68432,2602.7,2602.6,66.71287]
[1724343290620,7.68432,2602.7,2602.6,66.71287]
[1724343290819,7.68432,2602.7,2602.6,68.45843159]
[1724343291523,3.84216,2602.7,2602.6,68.45843159]
[1724343291840,3.84187,2602.9,2602.7,2.414]
[1724343292044,3.84168,2603.1,2602.7,2.414]
[1724343292206,3.84139,2603.3,2602.9,2.414]
[1724343292407,3.84137,2603.3,2602.9,2.414]
[1724343292709,3.84158,2603.1,2602.9,2.414]
[1724343292946,3.84137,2603.3,2602.9,2.414]
[1724343293142,3.84121,2603.4,2603.1,2.414]
[1724343294328,3.84107,2603.5,2603.1,2.414]
[1724343294515,0.60234708,2603.6,2603.2,2.2647]
[1724343294754,3.84077,2603.7,2603.2,2.2647]
[1724343294755,3.84076,2603.7,2603.2,2.2647]
[1724343296305,3.84048,2603.9,2603.2,2.2647]
[1724343296306,3.84058,2603.8,2603.2,3.91815921]
[1724343296507,3.84048,2603.9,2603.4,2.2647]
[1724343296743,3.84048,2603.9,2603.6,2.2647]
[1724343296922,3.84016,2604.1,2603.6,2.2647]
[1724343297325,4.44211858,2604.3,2603.6,2.2647]
[1724343297326,4.44211858,2604.3,2603.8,2.4253]
[1724343297529,3.8399,2604.3,2604.0,2.4253]
[1724343298009,3.84009,2604.1,2604.0,2.4253]
[1724343298244,7.68018,2604.1,2604.0,2.4253]
[1724343298769,8.23018,2604.1,2604.0,2.4253]
[1724343299261,3.84009,2604.1,2604.0,2.4253]
[1724343299555,3.84009,2604.1,2604.0,2.66783]
[1724343299859,3.83994,2604.3,2604.0,2.66783]
[1724343300027,3.83952,2604.5,2604.0,2.66783]
[1724343300231,3.83941,2604.6,2604.0,2.66783]
[1724343300232,3.83968,2604.4,2604.2,2.3873]
[1724343300568,3.83941,2604.6,2604.2,2.3873]
[1724343300908,3.83965,2604.4,2604.2,2.3873]
[1724343301109,3.83941,2604.6,2604.2,2.3873]
[1724343301337,3.83941,2604.6,2604.4,2.4391]
[1724343301557,3.83923,2604.7,2604.4,2.4391]
[1724343301755,3.83916,2604.8,2604.4,2.4391]
[1724343301957,3.83923,2604.7,2604.4,2.4391]
[1724343302254,3.83892,2604.9,2604.4,2.4391]
[1724343302472,3.83892,2604.9,2604.6,2.4857]
[1724343302675,3.83878,2605.0,2604.6,2.4857]
[1724343303015,3.83871,2605.1,2604.6,2.4857]
[1724343303220,3.83809,2605.5,2604.7,2.4857]
[1724343303532,3.83833,2605.3,2604.6,3.83927]
[1724343303867,3.83833,2605.3,2604.7,4.2858252]
[1724343304071,3.83818,2605.4,2604.9,2.4857]
[1724343304216,3.83761,2605.8,2605.2,2.4857]
[1724343304619,3.8379,2605.6,2605.2,2.4857]
[1724343305033,3.83673,2606.4,2604.7,0.4467152]
[1724343305034,3.83753,2605.9,2605.3,3.83821]
[1724343305219,3.83738,2606.0,2605.5,2.4857]
[1724343305414,3.8375,2605.9,2605.5,2.4857]
[1724343305747,3.83788,2605.6,2605.5,2.4857]
[1724343306336,7.67576,2605.6,2605.5,2.4857]
[1724343306962,4.38788,2605.6,2605.5,2.4857]
[1724343307274,3.83768,2605.8,2605.5,2.73427]
[1724343307982,3.83739,2606.0,2605.5,2.73427]
[1724343308290,3.83774,2605.7,2605.5,2.73427]
[1724343308579,7.67527,2605.8,2605.5,2.73427]
[1724343308783,3.8376,2605.8,2605.6,0.273427]
[1724343309142,3.83774,2605.7,2605.6,0.273427]
[1724343310266,3.83847,2605.2,2605.1,2.4857]
[1724343310854,3.83843,2605.3,2605.1,2.4857]
[1724343311237,3.83812,2605.5,2605.1,2.4857]
[1724343311436,3.83833,2605.3,2605.1,2.4857]
[1724343311847,7.67694,2605.2,2605.1,2.4857]
[1724343313282,3.83904,2604.9,2604.8,2.2963]
[1724343313581,7.67808,2604.9,2604.8,2.2963]
[1724343313942,8.22808,2604.9,2604.8,2.2963]
[1724343314167,4.38904,2604.9,2604.8,2.2963]
[1724343314353,3.83871,2605.1,2604.8,2.2963]
[1724343314591,3.83871,2605.1,2604.8,2.52593]
[1724343314773,3.8387,2605.1,2604.8,2.52593]
[1724343315284,3.83841,2605.3,2604.8,2.52593]
[1724343315285,3.8384,2605.3,2604.8,2.52593]
[1724343316552,7.67683,2605.3,2604.8,2.52593]
[1724343316877,7.67683,2605.3,2604.9,0.636505]
[1724343317068,3.8384,2605.3,2604.9,0.636505]
[1724343317879,3.8384,2605.3,2605.0,2.3415]
[1724343318995,3.83848,2605.2,2605.0,2.3415]
[1724343319421,3.83862,2605.1,2605.0,2.3415]
[1724343320594,3.83841,2605.3,2605.0,2.3415]
[1724343320901,3.8384,2605.3,2605.0,2.57565]
[1724343321487,7.67708,2605.2,2605.0,2.57565]
[1724343321685,3.83849,2605.2,2605.0,2.3415]
[1724343321995,3.83828,2605.4,2605.0,2.3415]
[1724343322196,7.67655,2605.4,2605.0,2.3415]
[1724343322401,3.83834,2605.3,2605.0,2.3415]
[1724343323197,7.67676,2605.3,2605.0,2.3415]
[1724343323501,3.8385,2605.2,2605.0,2.57565]
[1724343323695,3.8385,2605.2,2605.0,2.3415]
[1724343323896,3.83818,2605.4,2605.0,2.3415]
[1724343324262,3.83848,2605.2,2605.0,2.3415]
[1724343324464,3.83862,2605.1,2605.0,2.3415]
[1724343325200,3.83848,2605.2,2605.0,2.3415]
[1724343326187,3.83862,2605.1,2605.0,2.3415]
[1724343327918,7.67687,2605.3,2605.0,2.3415]
[1724343328065,3.8385,2605.2,2605.0,2.3415]
[1724343328260,3.8384,2605.3,2605.0,2.57565]
[1724343328462,3.83812,2605.5,2605.0,2.57565]
[1724343328659,7.82257,2605.9,2605.1,6.17859]
[1724343328867,3.83781,2605.7,2605.1,6.17859]
[1724343329075,3.83781,2605.7,2605.2,2.34]
[1724343329400,3.83781,2605.7,2605.3,0.617859]
[1724343329604,3.83795,2605.6,2605.3,0.617859]
[1724343329786,3.83775,2605.7,2605.4,2.34]
[1724343330507,7.67557,2605.7,2605.4,2.34]
[1724343331006,3.83775,2605.7,2605.4,2.34]
[1724343331214,3.83775,2605.7,2605.4,2.6357859]
[1724343331409,7.67561,2605.7,2605.4,2.6357859]
[1724343331581,3.83775,2605.7,2605.4,2.6357859]
[1724343331960,3.8372,2606.1,2605.4,2.34]
[1724343331961,3.83803,2605.5,2605.4,2.34]
[1724343334578,3.83776,2605.7,2605.4,2.34]
[1724343334901,3.83796,2605.6,2605.4,2.34]
[1724343335306,3.83803,2605.5,2605.4,2.34]
[1724343335501,3.83819,2605.4,2605.1,2.3887]
[1724343336894,3.83806,2605.5,2605.1,2.3887]
[1724343337273,3.83825,2605.4,2605.1,2.3887]
[1724343337473,3.83825,2605.4,2604.9,7.36]
[1724343337474,3.83832,2605.4,2604.9,9.7487]
[1724343337673,3.83813,2605.5,2604.9,9.7487]
[1724343337998,3.83834,2605.3,2604.9,9.7487]
[1724343338188,3.83834,2605.3,2604.9,2.3887]
[1724343338390,3.83849,2605.2,2604.9,2.3887]
[1724343338688,3.83834,2605.3,2604.9,2.3887]
[1724343339087,3.83825,2605.4,2604.9,3.395388]
[1724343339282,7.67631,2605.5,2605.0,2.2523]
[1724343339519,3.8382,2605.4,2605.0,2.2523]
[1724343342130,7.67648,2605.4,2605.0,2.2523]
[1724343342295,0.36034363,2605.3,2605.0,2.2523]
[1724343342619,7.67648,2605.4,2604.4,14.19963]
[1724343342620,3.83893,2604.9,2604.5,2.2946]
[1724343342924,3.83871,2605.1,2604.5,2.2946]
[1724343343087,4.19918482,2605.0,2604.6,1.649413]
[1724343343286,0.36041482,2604.9,2604.6,1.649413]
[1724343343502,3.83877,2605.0,2604.6,1.649413]
[1724343343817,3.83848,2605.2,2604.6,1.649413]
[1724343343818,0.36039182,2604.9,2604.7,2.3812]
[1724343344111,3.83885,2605.0,2604.7,3.1681963]
[1724343344315,3.83885,2605.0,2604.7,2.3812]
[1724343344316,0.36038833,2604.9,2604.7,2.3812]
[1724343344518,0.36038833,2604.8,2604.7,2.3812]
[1724343345078,0.36038833,2604.9,2604.7,2.3812]
[1724343345278,0.36038833,2604.8,2604.7,2.3812]
[1724343345726,3.83934,2604.7,2604.4,9.7963]
[1724343345916,3.83967,2604.4,2603.9,2.4363]
[1724343346122,3.83997,2604.2,2603.9,2.4363]
[1724343346321,0.36038833,2604.3,2603.9,6.27668]
[1724343346616,7.67916,2604.5,2603.9,2.4363]
[1724343346617,3.83972,2604.4,2603.9,2.4363]
[1724343346835,0.36038511,2604.2,2603.9,2.4363]
[1724343347016,0.36038511,2604.2,2603.9,3.79997]
[1724343347319,0.36038039,2604.3,2603.9,3.79997]
[1724343347320,3.83983,2604.3,2603.9,3.79997]
[1724343347620,0.36036362,2604.2,2603.9,3.79997]
[1724343348393,7.67921,2604.5,2603.9,3.79997]
[1724343348394,3.83956,2604.5,2603.9,3.79997]
[1724343348622,0.36036299,2604.4,2603.9,3.79997]
[1724343348784,4.20017299,2604.3,2603.9,3.79997]
[1724343348989,0.36036299,2604.2,2603.9,3.79997]
[1724343349187,3.83981,2604.3,2603.9,3.79997]
[1724343349396,3.83956,2604.5,2604.0,1.884083]
[1724343349916,4.1999845,2604.4,2603.9,2.4363]
[1724343350531,0.3603245,2604.3,2603.9,2.4363]
[1724343350726,3.83966,2604.4,2603.9,2.4363]
[1724343350944,8.04010817,2604.3,2603.9,2.4363]
[1724343351093,4.20033817,2604.2,2603.9,2.4363]
[1724343351423,3.83996,2604.2,2603.9,2.4363]
[1724343352012,10.09963,2604.7,2603.9,2.4363]
[1724343352013,4.20051649,2604.1,2603.9,2.4363]
[1724343352345,3.83983,2604.3,2603.6,2.2903]
[1724343352650,3.985,2604.4,2603.6,2.2903]
[1724343352651,3.84032,2604.0,2603.6,2.2903]
[1724343353039,3.84032,2604.0,2603.6,3.639439]
[1724343354052,3.83991,2604.3,2603.7,2.2626]
[1724343354251,3.8396,2604.5,2603.8,6.10303]
[1724343354252,0.36036492,2604.2,2603.8,6.10303]
[1724343354418,3.83968,2604.4,2603.9,2.872903]
[1724343354614,7.678,2604.9,2604.2,2.2626]
[1724343354960,0.36039473,2604.8,2604.4,2.3608]
[1724343355252,0.36039473,2604.7,2604.4,2.3608]
[1724343355453,3.83909,2604.8,2604.4,3.36484]
[1724343355642,0.36041746,2604.7,2604.4,3.36484]
[1724343355812,4.19989207,2604.6,2604.4,2.3608]
[1724343356008,3.985,2605.3,2604.4,2.3608]
[1724343356009,3.83922,2604.7,2604.4,2.3608]
[1724343356254,0.36039305,2604.6,2604.4,2.3608]
[1724343356454,3.83922,2604.7,2604.4,2.3608]
[1724343356639,7.67853,2604.7,2604.4,2.3608]
[1724343356963,4.199771,2604.6,2604.4,2.3608]
[1724343357125,3.83922,2604.7,2604.4,2.3608]
[1724343357456,3.83922,2604.7,2604.4,2.59688]
[1724343357816,4.19976924,2604.6,2604.4,2.59688]
[1724343358011,3.83936,2604.6,2604.4,2.3608]
[1724343358248,3.8395,2604.5,2604.4,2.3608]
[1724343358434,3.8398,2604.3,2604.1,2.3655]
[1724343358844,7.67922,2604.5,2604.1,2.3655]
[1724343359086,7.67922,2604.5,2604.1,2.60205]
[1724343359240,3.83959,2604.5,2604.1,2.60205]
[1724343360059,3.83981,2604.3,2604.1,2.60205]
[1724343360241,3.83981,2604.3,2604.1,2.3655]
[1724343360652,3.83965,2604.4,2604.1,2.3655]
[1724343361021,3.83981,2604.3,2604.1,2.3655]
[1724343361357,3.83995,2604.2,2604.1,2.3655]
[1724343362062,3.83995,2604.2,2603.8,2.4817]
[1724343362365,3.84016,2604.1,2603.8,2.4817]
[1724343362559,3.84039,2603.9,2603.6,7.36]
[1724343362731,3.84062,2603.8,2603.6,7.36]
[1724343362928,3.84056,2603.8,2603.6,7.36]
[1724343363313,4.38992,2604.3,2603.5,2.4817]
[1724343363314,3.84078,2603.7,2603.5,2.4817]
[1724343363421,3.84083,2603.6,2603.5,2.4817]
[1724343363621,3.84011,2604.1,2603.2,2.2737]
[1724343363622,3.841,2603.5,2603.2,2.2737]
[1724343366301,3.84083,2603.6,2603.2,2.2737]
[1724343368172,3.83996,2604.2,2603.3,2.4284]
[1724343368379,3.84032,2604.0,2603.4,3.84104]
[1724343368674,7.82471,2604.4,2603.5,2.36981187]
[1724343368849,3.83971,2604.4,2603.9,2.293]
[1724343369050,3.83951,2604.5,2604.0,3.84019]
[1724343369286,3.83917,2604.8,2604.1,3.84007]
[1724343369461,3.83917,2604.8,2603.9,6.13331]
[1724343369462,3.83949,2604.6,2603.9,6.13328]
[1724343369672,3.83949,2604.6,2604.1,3.84009]
[1724343369906,3.83944,2604.6,2604.1,3.84009]
[1724343370110,7.6789,2604.6,2604.0,4.453558]
[1724343370311,3.8396,2604.5,2604.0,0.613328]
[1724343370455,3.83944,2604.6,2604.0,0.613328]
[1724343370661,3.83944,2604.6,2604.1,0.6746578]
[1724343371593,3.985,2605.3,2604.4,3.83964]
[1724343371794,3.83887,2605.0,2604.5,2.4695]
[1724343371972,7.6771,2605.2,2604.5,7.323801]
[1724343372167,3.83864,2605.1,2604.5,7.40058102]
[1724343372370,3.83864,2605.1,2604.5,3.484371]
[1724343372594,3.83879,2605.0,2604.5,3.484371]
[1724343372768,3.83892,2604.9,2604.5,3.484371]
[1724343373101,3.83892,2604.9,2604.5,2.4695]
[1724343373992,3.83879,2605.0,2604.5,2.4695]
[1724343374413,3.83896,2604.9,2604.5,2.4695]
[1724343375517,3.83879,2605.0,2604.5,2.4695]
[1724343376869,3.83879,2605.0,2604.5,6.38576024]
[1724343377075,3.83879,2605.0,2604.6,1.02253202]
[1724343378022,7.67764,2605.0,2604.6,1.02253202]
[1724343378179,7.67764,2605.0,2604.5,2.4695]
[1724343378180,3.83895,2604.9,2604.5,2.4695]
[1724343378884,3.83879,2605.0,2604.5,2.4695]
[1724343379484,3.83929,2604.7,2604.5,2.4695]
[1724343379708,3.83936,2604.6,2604.2,9.8061]
[1724343379913,3.8398,2604.3,2604.2,9.8061]
[1724343380077,3.8398,2604.3,2604.2,7.36]
[1724343381150,3.8398,2604.3,2603.9,14.8961]
[1724343381151,3.8401,2604.1,2603.9,2.4461]
[1724343382628,3.985,2604.4,2603.4,11.20103]
[1724343382629,7.82468,2604.4,2603.5,2.4956]
[1724343382822,3.84037,2604.0,2603.5,2.4956]
[1724343383055,3.985,2603.8,2603.1,2.4956]
[1724343383535,4.39076,2603.7,2603.1,2.4956]
[1724343383740,3.84093,2603.6,2603.1,2.4956]
[1724343384032,3.84099,2603.5,2603.1,2.4956]
[1724343384536,3.985,2603.5,2602.8,2.4974]
[1724343384747,3.84173,2603.0,2602.6,64.29797]
[1724343385048,3.84143,2603.2,2602.6,72.07270067]
[1724343385586,4.39117,2603.4,2602.6,72.07270067]
[1724343385803,4.39117,2603.4,2602.7,7.77452067]
[1724343385804,8.23244,2603.4,2602.7,7.77452067]
[1724343386054,4.39117,2603.4,2602.8,3.842]
[1724343386943,4.39117,2603.4,2602.8,3.84192]
[1724343387127,4.39117,2603.4,2602.9,2.3568]
[1724343387534,0.55,2603.4,2602.9,6.19864]
[1724343387853,4.39099,2603.5,2602.9,7.59594007]
[1724343388166,4.39099,2603.5,2603.0,3.84172]
[1724343388167,0.55,2603.5,2603.0,3.84172]
[1724343388338,3.84088,2603.6,2602.9,3.75410007]
[1724343388339,3.84088,2603.6,2603.1,3.84155]
[1724343388517,3.84088,2603.6,2603.1,4.60111501]
[1724343388974,7.68182,2603.6,2603.1,0.75956501]
[1724343389308,3.84115,2603.4,2602.9,3.75410007]
[1724343389515,3.84142,2603.2,2602.9,2.3568]
[1724343390149,3.84142,2603.2,2602.7,11.29244067]
[1724343390349,3.84181,2603.0,2602.7,7.36]
[1724343390541,3.84201,2602.8,2602.6,66.65477]
[1724343391328,3.84216,2602.7,2602.6,64.29797]
[1724343391846,3.84187,2602.9,2602.6,64.29797]
[1724343393459,8.2333,2603.1,2602.6,64.29797]
[1724343394361,4.39159,2603.1,2602.6,66.47784307]
[1724343394720,3.84174,2603.0,2602.6,66.47784307]
[1724343395053,0.55,2603.1,2602.6,66.47784307]
[1724343395254,3.84149,2603.2,2602.7,2.3378]
[1724343395459,3.84149,2603.2,2602.8,3.93244067]
[1724343395669,3.84128,2603.3,2602.8,3.93244067]
[1724343396018,3.84165,2603.1,2602.8,3.93244067]
[1724343396334,3.84165,2603.1,2602.7,2.3378]
[1724343396335,3.84188,2602.9,2602.7,2.3378]
[1724343397434,3.84188,2602.9,2602.6,64.29797]
[1724343398855,3.84216,2602.7,2602.6,64.29797]
[1724343399917,4.39204,2602.8,2602.6,64.29797]
[1724343400463,8.23416,2602.8,2602.6,64.29797]
[1724343400681,4.39204,2602.8,2602.6,64.29797]
[1724343402025,3.84182,2603.0,2602.6,64.29797]
[1724343402244,3.84158,2603.1,2602.7,3.93244067]
[1724343402526,4.39174,2603.0,2602.7,3.93244067]
[1724343402744,4.39174,2603.0,2602.6,64.29797]
[1724343402745,8.23358,2603.0,2602.6,64.29797]
[1724343403363,3.84188,2602.9,2602.6,64.29797]
[1724343403665,4.39174,2603.0,2602.6,64.29797]
[1724343403666,3.84216,2602.7,2602.6,64.29797]
[1724343403865,7.684,2602.9,2602.6,64.29797]
[1724343404064,3.84198,2602.9,2602.6,64.29797]
[1724343404266,3.84198,2602.9,2602.6,66.76747]
[1724343404654,3.84194,2602.9,2602.6,66.76747]
[1724343404960,7.68389,2602.9,2602.6,66.76747]
[1724343405173,3.84204,2602.8,2602.6,66.76747]
[1724343406546,0.55,2603.0,2602.6,68.39893209]
[1724343406547,4.39183,2603.0,2602.6,68.39893209]
[1724343406727,3.84166,2603.1,2602.6,72.24123209]
[1724343407130,3.84173,2603.0,2602.6,68.39893209]
[1724343407373,3.84201,2602.8,2602.6,68.39893209]
[1724343407740,3.84201,2602.8,2602.6,66.76747]
[1724343407976,3.84201,2602.8,2602.6,64.29797]
[1724343408132,8.23432,2602.7,2602.6,64.29797]
[1724343408756,4.39216,2602.7,2602.6,64.29797]
[1724343412376,3.84186,2603.0,2602.6,64.29797]
[1724343412580,4.39194,2602.9,2602.6,64.29797]
[1724343414484,3.84203,2602.8,2602.6,64.29797]
[1724343414779,3.84149,2603.2,2602.7,2.3493]
[1724343414966,3.84165,2603.1,2602.7,2.3493]
[1724343415355,3.84174,2603.0,2602.7,2.3493]
[1724343415562,3.84188,2602.9,2602.7,2.3493]
[1724343415878,3.84174,2603.0,2602.7,6.19089199]
[1724343416256,3.986,2603.4,2602.7,6.19089199]
[1724343416502,3.84121,2603.4,2602.8,3.8419]
[1724343416710,0.60234492,2603.7,2603.0,2.4405]
[1724343416842,9.8251,2604.8,2603.6,2.4405]
[1724343416843,3.84018,2604.1,2603.6,2.4405]
[1724343417037,3.84056,2603.8,2603.6,2.4405]
[1724343418290,3.84029,2604.0,2603.6,2.4405]
[1724343418466,3.84049,2603.9,2603.6,2.4405]
[1724343419173,7.68064,2604.0,2603.6,2.4405]
[1724343419378,7.68065,2604.0,2603.6,3.068662]
[1724343419890,3.8404,2603.9,2603.6,3.068662]
[1724343420195,3.8404,2603.9,2603.6,2.4405]
[1724343420409,3.986,2604.2,2603.3,2.2931]
[1724343420410,4.39054,2603.8,2603.3,2.2931]
[1724343420543,8.23118,2603.8,2603.3,2.2931]
[1724343420739,4.39054,2603.8,2603.3,2.2931]
[1724343420943,4.39054,2603.8,2603.4,0.613442]
[1724343421444,8.23119,2603.8,2603.4,0.613442]
[1724343421782,8.23119,2603.8,2603.3,2.2931]
[1724343421783,3.84084,2603.6,2603.3,2.2931]
[1724343422488,0.55,2603.8,2602.8,15.04382]
[1724343422489,3.84114,2603.4,2603.0,2.2931]
[1724343422786,0.55,2603.3,2603.0,2.2931]
[1724343425054,3.84092,2603.6,2603.0,6.13481]
[1724343425363,3.84071,2603.7,2603.2,3.8414]
[1724343425570,0.55,2603.6,2603.1,0.22931]
[1724343425744,4.39086,2603.6,2603.1,4.07086]
[1724343425948,4.39086,2603.6,2603.2,1.020555]
[1724343426371,4.39086,2603.6,2603.0,9.97631]
[1724343426564,4.39086,2603.6,2603.1,3.84153]
[1724343427114,3.84063,2603.8,2603.2,3.84134]
[1724343427286,0.36043632,2603.7,2603.3,3.84124]
[1724343427450,3.84063,2603.8,2603.3,3.84124]
[1724343427651,0.36044227,2603.7,2603.3,3.84124]
[1724343427957,7.68129,2603.8,2603.3,3.84124]
[1724343428285,7.68129,2603.8,2603.1,3.84153]
[1724343428286,0.3605367,2603.7,2603.2,3.84135]
[1724343428496,0.36055213,2603.6,2603.2,4.838937]
[1724343428801,3.84061,2603.8,2603.2,8.680247]
[1724343428950,0.36054538,2603.7,2603.3,3.84125]
[1724343429148,3.84061,2603.8,2603.4,2.4141]
[1724343429453,0.36054252,2603.7,2603.4,2.4141]
[1724343429662,3.84061,2603.8,2603.4,3.1393997]
[1724343429849,0.3605558,2603.7,2603.4,3.1393997]
[1724343430048,3.84024,2604.0,2603.4,6.9804397]
[1724343430359,0.36053498,2603.9,2603.6,6.25486]
[1724343430544,7.68009,2604.2,2603.6,6.25486]
[1724343430748,0.36051467,2604.1,2603.7,0.625486]
[1724343431005,7.68007,2604.2,2603.7,0.625486]
[1724343431260,0.36050679,2604.1,2603.7,0.625486]
[1724343431571,3.84026,2604.0,2603.7,0.625486]
[1724343431842,3.84026,2604.0,2603.6,2.4141]
[1724343432001,3.84047,2603.9,2603.6,2.4141]
[1724343432203,3.84026,2604.0,2603.6,2.4141]
[1724343432399,7.68059,2604.0,2603.6,3.11215197]
[1724343432942,7.68064,2604.0,2603.6,3.11215197]
[1724343433240,3.84041,2603.9,2603.6,3.11215197]
[1724343433443,3.84056,2603.8,2603.6,3.11215197]
[1724343433645,3.84085,2603.6,2603.3,2.4141]
[1724343434007,7.68132,2603.8,2603.3,2.4141]
[1724343434352,0.55,2603.7,2603.3,2.4141]
[1724343434509,0.55,2603.7,2603.3,3.33965]
[1724343434714,4.39073,2603.7,2603.3,3.33965]
[1724343434952,3.84083,2603.6,2603.3,3.33965]
[1724343435169,3.84083,2603.6,2603.0,11.20161]
[1724343435170,3.84099,2603.5,2603.0,11.20161]
[1724343435377,0.55,2603.7,2603.0,9.7741]
[1724343435378,4.39121,2603.4,2603.0,9.7741]
[1724343435509,3.84143,2603.2,2603.0,2.4141]
[1724343435824,3.84196,2602.9,2602.7,2.4141]
[1724343436327,3.84216,2602.7,2602.6,64.29797]
[1724343436710,4.39216,2602.7,2602.6,64.29797]
[1724343437125,8.23432,2602.7,2602.6,64.29797]
[1724343437620,12.43706486,2602.7,2602.6,64.29797]
[1724343437821,16.42306486,2602.7,2602.6,64.29797]
[1724343438229,16.06248,2602.7,2602.6,64.29797]
[1724343438616,16.42303893,2602.7,2602.6,64.29797]
[1724343440020,8.59487893,2602.7,2602.6,64.29797]
[1724343440830,4.75271893,2602.7,2602.6,64.29797]
[1724343441329,4.39216,2602.7,2602.6,64.29797]
[1724343441759,0.55,2602.7,2602.6,64.29797]
[1724343441945,4.39216,2602.7,2602.6,64.29797]
[1724343443054,8.23432,2602.7,2602.6,64.29797]
[1724343446133,4.39216,2602.7,2602.6,64.29797]
[1724343448858,8.23432,2602.7,2602.6,64.29797]
[1724343450124,12.22032,2602.7,2602.6,64.29797]
[1724343450365,12.58097722,2602.7,2602.6,64.29797]
[1724343450872,8.59497722,2602.7,2602.6,64.29797]
[1724343452029,8.23432,2602.7,2602.6,64.29797]
[1724343452659,16.42322257,2602.7,2602.6,64.29797]
[1724343452875,18.84252257,2602.7,2602.6,64.29797]
[1724343453548,22.68468257,2602.7,2602.6,64.29797]
[1724343453753,18.84252257,2602.7,2602.6,64.29797]
[1724343453948,22.68468257,2602.7,2602.6,64.29797]
[1724343454161,18.84252257,2602.7,2602.6,64.29797]
[1724343455099,12.437202,2602.7,2602.6,64.29797]
[1724343455741,8.595042,2602.7,2602.6,64.29797]
[1724343455937,8.23432,2602.7,2602.6,64.29797]
[1724343456140,8.59504009,2602.7,2602.6,64.29797]
[1724343456361,8.23432,2602.7,2602.6,64.29797]
[1724343456564,3.84216,2602.7,2602.6,64.29797]